bitfinex-derivatives/quotes_SOLF0:USTF0_20250830
["timestamp","ask_amount","ask_price","bid_price","bid_amount"]
[1756560243643,0.0340642,198.61,198.57,0.03595348]
[1756560243844,7.5,198.6,198.57,0.03595348]
[1756560244243,3.24427857,198.61,198.57,0.03595348]
[1756560244539,7.5,198.6,198.57,0.03595348]
[1756560244743,3.24427857,198.61,198.57,0.03595348]
[1756560244946,7.5,198.6,198.57,0.03595348]
[1756560245141,3.24427857,198.61,198.57,0.03595348]
[1756560245547,7.5,198.6,198.57,0.03595348]
[1756560246946,0.0340642,198.61,198.57,0.03595348]
[1756560247347,0.0340642,198.61,198.58,7.74]
[1756560248153,0.0340642,198.61,198.57,0.03595348]
[1756560248154,7.9340642,198.61,198.57,0.03595348]
[1756560248349,7.9,198.6,198.57,0.03595348]
[1756560248951,3.21021437,198.59,198.57,0.03595348]
[1756560249153,7.9,198.58,198.57,0.03595348]
[1756560250555,7.9,198.59,198.57,0.03595348]
[1756560251157,0.0340642,198.61,198.57,0.03595348]
[1756560251563,7.9,198.6,198.57,0.03595348]
[1756560251864,7.9,198.58,198.57,0.03595348]
[1756560253364,0.46404652,198.57,198.49,7.74]
[1756560253561,7.9,198.58,198.49,7.74]
[1756560253761,3.21021437,198.56,198.46,7.74]
[1756560253963,11.11021437,198.56,198.46,7.74]
[1756560254365,11.11021437,198.56,198.46,10.95021437]
[1756560254769,0.03680217,198.53,198.46,10.95021437]
[1756560255268,0.03680217,198.53,198.47,7.74]
[1756560255467,0.03680217,198.53,198.5,7.74]
[1756560255669,0.03680217,198.53,198.49,3.21021437]
[1756560256271,0.03680217,198.53,198.5,7.74]
[1756560256467,0.03680217,198.53,198.49,3.21021437]
[1756560256770,0.03680217,198.53,198.47,3.21021437]
[1756560257168,7.9,198.57,198.48,7.74]
[1756560257558,0.03458549,198.52,198.48,7.74]
[1756560257761,0.03458549,198.52,198.47,3.21021437]
[1756560258161,0.03458549,198.52,198.48,7.74]
[1756560258370,0.03458549,198.52,198.47,3.21021437]
[1756560258571,0.03458549,198.52,198.48,7.74]
[1756560258773,0.03458549,198.52,198.47,3.21021437]
[1756560260072,0.03458549,198.52,198.48,7.74]
[1756560260871,0.03458549,198.52,198.5,3.21021437]
[1756560261071,0.03458549,198.52,198.51,7.74]
[1756560265176,0.03458549,198.52,198.42,5.57243843]
[1756560265379,0.03458549,198.52,198.44,3.21021437]
[1756560265680,0.03458549,198.52,198.45,7.74]
[1756560265882,7.88,198.53,198.45,7.74]
[1756560266080,0.03405387,198.5,198.45,7.74]
[1756560266281,0.03405387,198.5,198.44,3.21021437]
[1756560266482,0.03405387,198.5,198.45,7.74]
[1756560266684,0.03405387,198.5,198.44,3.21021437]
[1756560267579,0.03405387,198.5,198.45,7.74]
[1756560268077,0.03405387,198.5,198.44,3.21021437]
[1756560268484,0.03405387,198.5,198.45,7.74]
[1756560268983,0.03405387,198.5,198.44,3.21021437]
[1756560269585,0.03405387,198.5,198.44,10.95021437]
[1756560270480,7.91405387,198.5,198.44,7.74]
[1756560272280,0.03405387,198.5,198.44,7.74]
[1756560272483,0.03405387,198.5,198.46,7.74]
[1756560272682,0.03405387,198.5,198.45,3.21021437]
[1756560273285,0.03405387,198.5,198.46,7.74]
[1756560273886,0.03405387,198.5,198.43,7.74]
[1756560275584,0.03405387,198.5,198.48,7.74]
[1756560276086,0.03405387,198.5,198.47,3.21021437]
[1756560276782,0.03405387,198.5,198.48,7.74]
[1756560276976,0.03405387,198.5,198.47,3.21021437]
[1756560277181,7.68,198.63,198.49,7.67]
[1756560277381,7.68,198.63,198.53,10.88021437]
[1756560280279,3.21021437,198.64,198.53,10.88021437]
[1756560280784,7.68,198.63,198.53,10.88021437]
[1756560281992,3.21021437,198.64,198.53,10.88021437]
[1756560282186,5.41222919,198.66,198.53,10.88021437]
[1756560282385,7.68,198.61,198.53,10.88021437]
[1756560284190,7.68,198.61,198.5,3.21021437]
[1756560285486,7.68,198.61,198.51,7.67]
[1756560287286,7.68,198.61,198.53,3.21021437]
[1756560287593,7.68,198.61,198.54,7.67]
[1756560298398,7.68,198.61,198.5,3.21021437]
[1756560298600,3.21021437,198.6,198.5,3.21021437]
[1756560298900,7.68,198.59,198.5,3.21021437]
[1756560301002,3.21021437,198.57,198.45,7.67]
[1756560301204,7.68,198.56,198.45,7.67]
[1756560302797,5.41222919,198.61,198.45,7.67]
[1756560302798,3.21021437,198.54,198.45,7.67]
[1756560303002,7.68,198.53,198.45,7.67]
[1756560304698,3.21021437,198.57,198.45,10.88021437]
[1756560305002,47.45021437,198.6,198.52,7.67]
[1756560305202,44.24,198.6,198.52,7.67]
[1756560305597,7.68,198.6,198.52,7.67]
[1756560305794,7.68,198.63,198.52,7.67]
[1756560306503,7.68,198.63,198.54,3.21021437]
[1756560306704,7.68,198.63,198.55,7.67]
[1756560307404,7.5,198.66,198.55,7.67]
[1756560309101,7.5,198.66,198.57,7.91]
[1756560311803,10.71021437,198.66,198.53,3.21021437]
[1756560312004,3.21021437,198.6,198.5,3.21021437]
[1756560312202,7.5,198.59,198.5,3.21021437]
[1756560312401,7.5,198.59,198.49,7.91]
[1756560313604,3.21021437,198.57,198.45,7.91]
[1756560313812,7.5,198.56,198.45,7.91]
[1756560316009,10.71021437,198.54,198.45,7.91]
[1756560316707,7.53290284,198.51,198.45,7.91]
[1756560316909,7.53290284,198.51,198.42,7.91]
[1756560318707,7.5,198.48,198.37,7.91]
[1756560319727,7.5,198.48,198.38,3.21021437]
[1756560320017,3.21021437,198.49,198.39,7.91]
[1756560320223,10.71021437,198.52,198.39,7.91]
[1756560320916,10.71021437,198.52,198.41,3.21021437]
[1756560321119,10.71021437,198.52,198.42,7.91]
[1756560321712,7.5,198.52,198.42,7.91]
[1756560324423,7.5,198.52,198.44,3.21021437]
[1756560324622,7.5,198.52,198.45,7.91]
[1756560329420,7.5,198.52,198.42,7.91]
[1756560330823,7.5,198.49,198.42,7.91]
[1756560336030,7.5,198.46,198.38,7.91]
[1756560341131,3.21021437,198.53,198.4,7.66]
[1756560341334,7.93,198.52,198.4,7.66]
[1756560341733,3.21021437,198.5,198.4,7.66]
[1756560341933,7.93,198.49,198.4,7.66]
[1756560343929,11.14021437,198.43,198.32,7.66]
[1756560344635,3.21021437,198.5,198.26,47.42]
[1756560344636,3.21021437,198.46,198.35,7.66]
[1756560344837,7.93,198.47,198.37,3.21021437]
[1756560345033,7.93,198.47,198.38,7.66]
[1756560346334,3.21021437,198.46,198.38,7.66]
[1756560347840,7.93,198.47,198.38,7.66]
[1756560350141,7.93,198.47,198.38,10.87021437]
[1756560350334,3.21021437,198.46,198.38,7.66]
[1756560350541,7.93,198.45,198.38,7.66]
[1756560358743,7.93,198.45,198.38,10.87021437]
[1756560362359,7.93,198.49,198.41,3.21021437]
[1756560362552,11.14021437,198.55,198.45,7.66]
[1756560363257,7.93,198.55,198.48,7.66]
[1756560365750,3.21021437,198.61,198.5,3.21021437]
[1756560365954,7.93,198.6,198.51,7.66]
[1756560366858,7.93,198.6,198.49,3.21021437]
[1756560367053,3.21021437,198.58,198.49,3.21021437]
[1756560367251,7.5,198.57,198.49,3.21021437]
[1756560367454,7.5,198.57,198.47,7.66]
[1756560368864,7.5,198.57,198.5,7.82]
[1756560370257,7.5,198.57,198.49,3.21021437]
[1756560370658,7.5,198.57,198.42,71.66]
[1756560370859,7.5,198.57,198.48,3.21021437]
[1756560371063,7.5,198.57,198.48,11.03021437]
[1756560371864,7.5,198.58,198.48,11.03021437]
[1756560372061,3.21021437,198.59,198.48,11.03021437]
[1756560372264,7.5,198.58,198.48,11.03021437]
[1756560372661,3.21021437,198.59,198.48,11.03021437]
[1756560372871,7.5,198.58,198.48,11.03021437]
[1756560373470,3.21021437,198.59,198.48,7.82]
[1756560373768,7.5,198.58,198.48,7.82]
[1756560376074,7.5,198.58,198.5,3.21021437]
[1756560376266,7.5,198.58,198.51,7.82]
[1756560377372,3.21021437,198.63,198.53,3.21021437]
[1756560377575,3.21021437,198.63,198.54,7.82]
[1756560377870,88.86,198.65,198.54,7.82]
[1756560378063,7.5,198.65,198.54,7.82]
[1756560380877,7.5,198.65,198.56,3.21021437]
[1756560381077,7.5,198.65,198.57,7.82]
[1756560382781,7.5,198.65,198.57,11.03021437]
[1756560384584,7.5,198.69,198.58,11.03021437]
[1756560384779,7.5,198.69,198.53,7.82]
[1756560384980,7.5,198.69,198.61,3.21021437]
[1756560385181,7.5,198.71,198.6,11.03021437]
[1756560385581,7.5,198.68,198.57,3.21021437]
[1756560385985,10.71021437,198.68,198.57,3.21021437]
[1756560386583,7.5,198.68,198.57,3.21021437]
[1756560388580,7.5,198.68,198.58,7.82]
[1756560389181,7.5,198.68,198.6,3.21021437]
[1756560389376,7.5,198.68,198.61,7.82]
[1756560390978,7.5,198.71,198.61,7.82]
[1756560391887,7.5,198.71,198.63,3.21021437]
[1756560392086,7.5,198.71,198.64,7.82]
[1756560404297,10.71021437,198.71,198.59,7.45]
[1756560408699,10.71021437,198.71,198.6,3.21021437]
[1756560409003,10.71021437,198.71,198.61,7.45]
[1756560409599,3.21021437,198.65,198.52,7.45]
[1756560409801,7.92,198.64,198.52,10.66021437]
[1756560409994,7.92,198.64,198.52,3.21021437]
[1756560410201,7.92,198.64,198.53,7.45]
[1756560411193,11.13021437,198.64,198.53,7.45]
[1756560411392,3.21021437,198.68,198.53,7.45]
[1756560411393,7.92,198.6,198.53,7.45]
[1756560416803,3.21021437,198.61,198.53,7.45]
[1756560417001,11.13021437,198.64,198.53,7.45]
[1756560419409,3.21021437,198.61,198.53,7.45]
[1756560419606,7.92,198.6,198.53,7.45]
[1756560421001,35.37021437,198.68,198.53,7.45]
[1756560421207,3.21021437,198.63,198.53,7.45]
[1756560422906,7.92,198.64,198.55,3.21021437]
[1756560423105,7.92,198.64,198.56,7.45]
[1756560423604,7.92,198.67,198.56,7.45]
[1756560423812,7.92,198.67,198.58,7.45]
[1756560427713,7.41,198.64,198.58,7.45]
[1756560427908,3.21021437,198.68,198.58,7.45]
[1756560428113,10.62021437,198.68,198.58,7.45]
[1756560428914,10.62021437,198.68,198.58,10.66021437]
[1756560429910,7.41,198.67,198.58,10.66021437]
[1756560430614,7.41,198.67,198.58,7.45]
[1756560430811,3.21021437,198.65,198.58,7.45]
[1756560431012,7.41,198.64,198.58,7.45]
[1756560439917,7.41,198.64,198.53,3.21021437]
[1756560440118,7.41,198.64,198.54,7.62]
[1756560441321,7.41,198.64,198.57,7.62]
[1756560443818,7.41,198.62,198.52,13.19243843]
[1756560444023,41.13021437,198.7,198.52,7.62]
[1756560444024,7.41,198.59,198.52,7.62]
[1756560446326,3.21021437,198.62,198.52,7.62]
[1756560446526,3.21021437,198.62,198.53,7.62]
[1756560447120,7.41,198.63,198.53,7.62]
[1756560447320,7.41,198.63,198.55,3.21021437]
[1756560447521,7.41,198.63,198.56,7.62]
[1756560447921,7.41,198.67,198.56,7.62]
[1756560448730,7.41,198.67,198.58,3.21021437]
[1756560448926,7.41,198.67,198.59,7.62]
[1756560450029,10.62021437,198.71,198.62,7.62]
[1756560453631,7.41,198.71,198.62,7.62]
[1756560461845,3.21021437,198.69,198.62,7.62]
[1756560462047,3.21021437,198.66,198.57,3.21021437]
[1756560462250,7.87,198.65,198.57,3.21021437]
[1756560463452,0.03394044,198.63,198.58,7.59]
[1756560463653,0.03394044,198.63,198.57,3.21021437]
[1756560463845,0.03394044,198.63,198.58,7.59]
[1756560464147,0.03394044,198.63,198.6,3.21021437]
[1756560464549,0.03394044,198.63,198.61,7.59]
[1756560464746,0.03394044,198.63,198.6,3.21021437]
[1756560465451,0.03394044,198.63,198.61,7.59]
[1756560465655,0.03394044,198.63,198.6,3.21021437]
[1756560466155,0.03394044,198.63,198.61,7.59]
[1756560466355,0.03394044,198.63,198.6,3.21021437]
[1756560466751,0.03394044,198.63,198.61,7.59]
[1756560466955,0.03394044,198.63,198.6,3.21021437]
[1756560467151,0.03394044,198.63,198.61,7.59]
[1756560467658,0.03394044,198.63,198.6,3.21021437]
[1756560468155,0.03394044,198.63,198.61,7.59]
[1756560468351,0.03394044,198.63,198.6,3.21021437]
[1756560468556,0.03394044,198.63,198.57,7.59]
[1756560468756,0.03394044,198.63,198.6,3.21021437]
[1756560469153,0.03394044,198.63,198.61,7.59]
[1756560469355,0.03394044,198.63,198.6,3.21021437]
[1756560470956,0.03394044,198.63,198.61,7.59]
[1756560472160,0.03394044,198.63,198.6,3.21021437]
[1756560472358,0.03394044,198.63,198.61,7.59]
[1756560472656,0.03394044,198.63,198.6,3.21021437]
[1756560472963,0.03394044,198.63,198.61,7.59]
[1756560473156,0.03394044,198.63,198.6,3.21021437]
[1756560473351,0.03394044,198.63,198.61,7.59]
[1756560473757,0.03394044,198.63,198.6,3.21021437]
[1756560473958,0.03394044,198.63,198.61,7.59]
[1756560474259,0.03394044,198.63,198.6,3.21021437]
[1756560474657,0.03394044,198.63,198.61,7.59]
[1756560475461,0.03394044,198.63,198.6,3.21021437]
[1756560476255,0.03394044,198.63,198.61,7.59]
[1756560476458,0.03394044,198.63,198.57,10.80021437]
[1756560478464,0.03394044,198.63,198.55,7.59]
[1756560478665,0.03394044,198.63,198.58,3.21021437]
[1756560479066,0.03394044,198.63,198.59,7.59]
[1756560479464,0.03394044,198.63,198.58,3.21021437]
[1756560479665,0.03394044,198.63,198.59,7.59]
[1756560479864,0.03394044,198.63,198.58,3.21021437]
[1756560481261,0.03394044,198.63,198.59,7.59]
[1756560481567,0.03394044,198.63,198.62,7.59]
[1756560484972,0.03394044,198.63,198.61,3.21021437]
[1756560485173,0.03394044,198.63,198.61,10.80021437]
[1756560485977,0.03394044,198.63,198.62,7.59]
[1756560489075,112.84335039,198.72,198.62,7.59]
[1756560489277,112.84335039,198.72,198.65,7.73]
[1756560490376,112.84335039,198.72,198.67,0.03503727]
[1756560490580,7.89,198.71,198.67,0.03503727]
[1756560491077,112.84335039,198.72,198.67,0.03503727]
[1756560491678,7.89,198.71,198.67,0.03503727]
[1756560491872,112.84335039,198.72,198.67,0.03503727]
[1756560492069,7.89,198.71,198.67,0.03503727]
[1756560492481,112.84335039,198.72,198.67,0.03503727]
[1756560492781,7.89,198.71,198.67,0.03503727]
[1756560492977,112.84335039,198.72,198.67,0.03503727]
[1756560493679,7.89,198.71,198.67,0.03503727]
[1756560493881,112.84335039,198.72,198.67,0.03503727]
[1756560494077,7.89,198.71,198.67,0.03503727]
[1756560494378,112.84335039,198.72,198.67,0.03503727]
[1756560494579,7.89,198.71,198.67,0.03503727]
[1756560495879,112.84335039,198.72,198.67,0.03503727]
[1756560496983,7.89,198.71,198.67,0.03503727]
[1756560498173,116.05356476,198.72,198.67,0.03503727]
[1756560498573,7.89,198.71,198.67,0.03503727]
[1756560499173,116.05356476,198.72,198.67,0.03503727]
[1756560499578,7.89,198.71,198.67,0.03503727]
[1756560500178,116.05356476,198.72,198.67,0.03503727]
[1756560500578,7.89,198.71,198.67,0.03503727]
[1756560501175,116.05356476,198.72,198.67,0.03503727]
[1756560501984,7.89,198.71,198.67,0.03503727]
[1756560502386,116.05356476,198.72,198.67,0.03503727]
[1756560503281,7.89,198.71,198.67,0.03503727]
[1756560503679,116.05356476,198.72,198.67,0.03503727]
[1756560503879,7.89,198.71,198.67,0.03503727]
[1756560504383,116.05356476,198.72,198.67,0.03503727]
[1756560504584,7.89,198.71,198.67,0.03503727]
[1756560505586,116.05356476,198.72,198.67,0.03503727]
[1756560505785,7.89,198.71,198.67,0.03503727]
[1756560506489,116.05356476,198.72,198.67,0.03503727]
[1756560507088,7.89,198.71,198.67,0.03503727]
[1756560507284,116.05356476,198.72,198.67,0.03503727]
[1756560507689,7.89,198.71,198.67,0.03503727]
[1756560508284,116.05356476,198.72,198.67,0.03503727]
[1756560508486,112.84335039,198.72,198.67,0.03503727]
[1756560508686,7.89,198.71,198.67,0.03503727]
[1756560508985,116.05356476,198.72,198.67,0.03503727]
[1756560509484,7.89,198.71,198.67,0.03503727]
[1756560510089,116.05356476,198.72,198.67,0.03503727]
[1756560510291,7.89,198.71,198.67,0.03503727]
[1756560510492,116.05356476,198.72,198.67,0.03503727]
[1756560511289,3.21021437,198.69,198.67,0.03503727]
[1756560511590,7.89,198.68,198.67,0.03503727]
[1756560512394,0.46496273,198.65,198.63,7.73]
[1756560512602,3.21021437,198.66,198.58,7.73]
[1756560512793,3.21021437,198.63,198.58,7.73]
[1756560514196,3.21021437,198.65,198.58,7.73]
[1756560514386,46.81021437,198.66,198.58,7.73]
[1756560516096,7.89,198.65,198.58,7.73]
[1756560516295,7.89,198.65,198.55,7.73]
[1756560522790,7.58,198.62,198.55,7.73]
[1756560542104,10.79021437,198.65,198.55,7.73]
[1756560542905,7.58,198.65,198.55,7.73]
[1756560543709,3.21021437,198.67,198.55,10.94021437]
[1756560543907,7.58,198.66,198.55,10.94021437]
[1756560544110,3.21021437,198.67,198.55,10.94021437]
[1756560544509,3.21021437,198.67,198.56,7.95]
[1756560544510,7.58,198.66,198.56,7.95]
[1756560544706,7.58,198.66,198.59,7.95]
[1756560545712,7.58,198.71,198.62,7.95]
[1756560546210,10.79021437,198.71,198.62,7.95]
[1756560546511,7.58,198.71,198.62,7.95]
[1756560546702,10.79021437,198.71,198.62,7.95]
[1756560547911,7.58,198.71,198.62,7.95]
[1756560548112,10.79021437,198.71,198.62,7.95]
[1756560549914,7.58,198.71,198.62,7.95]
[1756560550112,7.58,198.71,198.62,11.16021437]
[1756560550316,7.58,198.71,198.63,7.55]
[1756560557531,7.58,198.71,198.65,3.21021437]
[1756560558129,7.58,198.71,198.66,7.55]
[1756560558431,7.58,198.71,198.65,3.21021437]
[1756560559329,7.58,198.71,198.66,7.55]
[1756560559729,7.58,198.71,198.65,3.21021437]
[1756560560125,7.58,198.71,198.66,7.55]
[1756560560331,7.58,198.71,198.65,3.21021437]
[1756560560732,7.58,198.71,198.65,10.76021437]
[1756560560933,7.58,198.71,198.65,7.55]
[1756560561827,113.00836748,198.75,198.65,7.55]
[1756560562129,120.50836748,198.75,198.67,3.21021437]
[1756560562328,120.50836748,198.75,198.68,7.55]
[1756560571345,120.50836748,198.75,198.7,2.04206187]
[1756560571740,113.00836748,198.75,198.7,2.04206187]
[1756560572541,7.5,198.74,198.7,2.04206187]
[1756560572736,113.00836748,198.75,198.7,2.04206187]
[1756560572946,7.5,198.74,198.7,2.04206187]
[1756560573140,113.00836748,198.75,198.7,2.04206187]
[1756560573750,7.5,198.74,198.7,2.04206187]
[1756560574143,113.00836748,198.75,198.7,2.04206187]
[1756560574546,7.5,198.74,198.7,2.04206187]
[1756560574852,113.00836748,198.75,198.7,2.04206187]
[1756560575242,7.5,198.74,198.7,2.04206187]
[1756560576248,113.00836748,198.75,198.7,2.04206187]
[1756560576450,7.5,198.71,198.65,7.55]
[1756560576650,2.04206187,198.7,198.65,2.04206187]
[1756560577047,7.78,198.69,198.65,9.59206187]
[1756560577245,113.00836748,198.75,198.65,9.59206187]
[1756560577246,7.78,198.71,198.65,9.59206187]
[1756560579954,7.78,198.71,198.67,2.04206187]
[1756560580453,7.78,198.71,198.68,7.61]
[1756560580655,7.78,198.73,198.67,2.04206187]
[1756560580956,7.78,198.74,198.67,2.04206187]
[1756560581158,7.78,198.71,198.67,2.04206187]
[1756560581553,7.78,198.71,198.65,2.04206187]
[1756560581859,7.78,198.71,198.69,2.04206187]
[1756560582959,7.78,198.75,198.69,9.65206187]
[1756560583158,7.78,198.77,198.71,2.04206187]
[1756560585248,7.78,198.77,198.69,7.61]
[1756560596873,7.78,198.77,198.72,7.61]
[1756560597967,7.78,198.77,198.71,3.19053393]
[1756560599066,7.78,198.77,198.72,7.61]
[1756560599271,7.78,198.77,198.71,3.19053393]
[1756560599474,7.78,198.77,198.72,7.61]
[1756560599977,7.78,198.77,198.73,3.19053393]
[1756560600172,7.78,198.77,198.74,7.61]
[1756560602770,7.78,198.82,198.74,7.61]
[1756560605267,2.0413082,198.8,198.74,9.6513082]
[1756560605470,7.78,198.8,198.74,9.6513082]
[1756560605676,7.78,198.8,198.75,2.0413082]
[1756560605869,7.78,198.8,198.75,9.6513082]
[1756560606171,9.8213082,198.81,198.75,9.6513082]
[1756560607674,8.46576913,198.85,198.78,7.71]
[1756560607969,338.28,198.86,198.78,7.71]
[1756560607970,7.59,198.83,198.78,7.71]
[1756560608167,2.0413082,198.84,198.78,7.71]
[1756560608369,7.59,198.83,198.78,7.71]
[1756560608571,2.0413082,198.84,198.78,7.71]
[1756560608777,7.59,198.83,198.78,7.71]
[1756560608978,7.59,198.84,198.78,7.71]
[1756560609179,9.6313082,198.85,198.79,9.7513082]
[1756560610280,7.59,198.85,198.79,9.7513082]
[1756560610480,3.577837,198.84,198.79,2.0413082]
[1756560610681,3.577837,198.83,198.8,7.71]
[1756560610982,3.577837,198.83,198.81,9.7513082]
[1756560611178,656.31431156,198.95,198.81,9.7513082]
[1756560611179,5.57394486,198.94,198.81,9.7513082]
[1756560611485,5.57394486,198.94,198.68,76.42177165]
[1756560611486,7.59,198.84,198.79,2.0413082]
[1756560611677,7.59,198.84,198.77,7.71]
[1756560611873,0.87529554,198.92,198.61,338.16]
[1756560611874,7.59,198.82,198.73,7.71]
[1756560612175,7.59,198.87,198.75,2.0413082]
[1756560612380,9.6313082,198.82,198.78,7.71]
[1756560612775,7.59,198.82,198.77,2.0413082]
[1756560612977,7.59,198.82,198.78,7.71]
[1756560613181,2.0413082,198.81,198.73,7.71]
[1756560613382,7.59,198.8,198.73,7.71]
[1756560613677,7.59,198.89,198.75,7.71]
[1756560613883,7.59,198.85,198.75,7.71]
[1756560614084,3.57331005,198.84,198.75,7.71]
[1756560614279,7.59,198.85,198.75,7.71]
[1756560614476,3.57284422,198.84,198.75,7.71]
[1756560614680,7.59,198.85,198.75,7.71]
[1756560614876,3.5729568,198.84,198.77,3.18953975]
[1756560615080,7.59,198.85,198.78,7.71]
[1756560617380,7.59,198.83,198.72,7.71]
[1756560617580,10.77953975,198.81,198.72,7.71]
[1756560618587,3.60337457,198.8,198.72,7.71]
[1756560618787,10.77953975,198.81,198.72,7.71]
[1756560619081,3.60307891,198.8,198.72,7.71]
[1756560619286,10.77953975,198.81,198.72,7.71]
[1756560619488,3.60294608,198.8,198.72,7.71]
[1756560619683,10.77953975,198.81,198.72,7.71]
[1756560619883,3.18953975,198.78,198.77,92.41]
[1756560620083,6.79254006,198.78,198.77,92.41]
[1756560621894,7.16254006,198.78,198.77,82.41]
[1756560622894,3.55953975,198.78,198.77,82.41]
[1756560623287,3.60164157,198.78,198.77,82.41]
[1756560623494,0.37,198.81,198.78,7.71]
[1756560623695,3.55953975,198.84,198.77,90.12]
[1756560623889,3.60274793,198.83,198.77,90.12]
[1756560624090,3.60274793,198.82,198.77,82.41]
[1756560624285,3.60274793,198.81,198.77,82.41]
[1756560624494,3.55953975,198.84,198.78,7.71]
[1756560624693,3.60376503,198.83,198.77,82.41]
[1756560624888,3.60376503,198.82,198.78,7.71]
[1756560625090,0.36,198.87,198.78,7.71]
[1756560625291,3.60508879,198.86,198.78,7.71]
[1756560625492,3.54953975,198.91,198.8,7.71]
[1756560625795,3.60579544,198.9,198.8,7.71]
[1756560625984,3.60579544,198.89,198.8,7.71]
[1756560626184,3.60579544,198.88,198.8,7.71]
[1756560626493,3.54953975,198.91,198.8,3.18953975]
[1756560626695,3.60469089,198.9,198.81,7.71]
[1756560627000,3.60469089,198.89,198.81,7.71]
[1756560627201,3.60469089,198.88,198.81,7.71]
[1756560627402,0.36,198.91,198.81,7.71]
[1756560627597,3.60326463,198.9,198.81,7.71]
[1756560627798,3.60326463,198.89,198.81,7.71]
[1756560628101,3.18953975,198.86,198.78,7.71]
[1756560628301,3.60326463,198.85,198.78,7.71]
[1756560628602,0.36,198.87,198.78,7.71]
[1756560629702,0.36,198.87,198.78,10.89953975]
[1756560629902,0.36,198.87,198.79,7.71]
[1756560632300,1.23536159,198.91,198.79,7.71]
[1756560632500,0.36,198.89,198.79,7.71]
[1756560632700,3.60101693,198.88,198.79,7.71]
[1756560632894,3.60101693,198.87,198.79,7.71]
[1756560633098,3.96101693,198.86,198.79,7.71]
[1756560633304,3.60101693,198.85,198.79,7.71]
[1756560633503,0.36,198.86,198.79,7.71]
[1756560633908,3.18953975,198.9,198.8,7.71]
[1756560634205,3.60126476,198.89,198.8,7.71]
[1756560634407,3.60126476,198.88,198.8,7.71]
[1756560634701,3.60126476,198.87,198.8,7.71]
[1756560634909,3.18953975,198.9,198.8,7.71]
[1756560635105,3.60037577,198.89,198.8,7.71]
[1756560635408,3.60037577,198.88,198.8,7.71]
[1756560635704,3.5994074,198.87,198.8,7.71]
[1756560635897,3.5994074,198.86,198.8,7.71]
[1756560636096,0.36,198.88,198.8,7.71]
[1756560636294,3.59926485,198.87,198.8,7.71]
[1756560636498,3.59926485,198.86,198.8,7.71]
[1756560636703,0.36,198.88,198.8,7.71]
[1756560636900,3.5994527,198.87,198.8,7.71]
[1756560637106,0.36,198.88,198.8,7.71]
[1756560637313,3.60176504,198.87,198.8,7.71]
[1756560637501,0.36,198.88,198.8,7.71]
[1756560637701,3.60127315,198.87,198.8,7.71]
[1756560638007,0.36,198.88,198.8,7.71]
[1756560638306,3.60084396,198.87,198.8,7.71]
[1756560638501,4.06492336,198.91,198.8,3.18953975]
[1756560638701,3.60042377,198.9,198.81,8.16]
[1756560638900,3.60042377,198.89,198.81,8.16]
[1756560639104,3.60042377,198.88,198.81,8.16]
[1756560639300,341.61953975,198.92,198.81,8.16]
[1756560639507,3.60035544,198.91,198.81,8.16]
[1756560639806,3.60035544,198.9,198.82,8.16]
[1756560640003,341.61953975,198.92,198.82,8.16]
[1756560640305,3.60137705,198.91,198.82,8.16]
[1756560640502,3.60137705,198.9,198.82,8.16]
[1756560640706,338.43,198.92,198.82,8.16]
[1756560640905,3.60020083,198.91,198.82,8.16]